[Event "Berlin Championship 2024"]
[Site "Berlin"]
[Date "2024.04.01"]
[Round "3.2"]
[White "Baldauf, Marco"]
[Black "Lagunow, Alexander"]
[Result "1/2-1/2"]
[ECO "D47"]
[WhiteElo "2481"]
[BlackElo "2350"]
[Annotator "TA"]
[PlyCount "131"]
[EventDate "2024.03.30"]
[EventType "swiss"]
[EventCountry "GER"]
[SourceTitle "playchess.com"]
[Source "ChessBase"]
[SourceQuality "1"]
[TimeControl "40/5400+30:1800+30"]

{[%evp 33,131,-7,37,0,20,0,0,0,0,0,38,-10,26,0,0,0,0,0,0,0,41,20,19,0,23,17,18,35,35,34,35,42,35,35,35,35,52,50,50,51,82,57,71,70,78,41,41,41,41,25,32,29,41,41,41,26,41,41,41,41,41,41,41,41,41,41,41,40,40,40,40,40,40,40,40,40,83,83,91,67,84,55,59,43,59,37,51,43,43,20,107,107,135,120,120,103,111,46,46,0]} 1. d4 {[%emt 0:00:48]} d5 {[%emt 0:00:09]} 2. c4 {[%emt 0:00:04]} c6 {[%emt 0:00:05]} 3. Nc3 {[%emt 0:04:05]} Nf6 {[%emt 0:00:20]} 4. e3 {[%emt 0:00:09]} e6 {[%emt 0:00:56]} 5. Nf3 {[%emt 0:00:12]} Nbd7 {[%emt 0:00:22]} 6. Bd3 {[%emt 0:00:05]} dxc4 {[%emt 0:00:26]} 7. Bxc4 {[%emt 0:00:02]} b5 {[%emt 0:00:38]} 8. Bd3 {[%emt 0:00:03]} b4 {[%emt 0:00:42]} 9. Na4 {[%emt 0:11:56]} c5 {[%emt 0:01:37]} 10. O-O {[%emt 0:03:34]} Bb7 {[%emt 0:18:29]} 11. Bd2 {[%emt 0:11:46] D47: Semi-Slav: Meran System.} Ne4 $146 {[%emt 0:18:00]} ({Predecessor:} 11... a6 12. Rc1 Rc8 13. Qe2 Qa5 14. b3 Be7 15. a3 cxd4 16. Rxc8+ Bxc8 17. Nxd4 Bb7 18. Rc1 Qd5 {½-½ Schwenke,M (1954)-Schriewer,T (1948) Ruhrgebiet Verbandsliga2 1011 2010 (6.7)}) 12. dxc5 {[%emt 0:16:39]} Nexc5 {[%emt 0:10:50]} 13. Bb5 {[%emt 0:04:09]} a6 {[%emt 0:10:23]} 14. Nxc5 {[%emt 0:00:18]} Bxc5 {[%emt 0:00:28]} 15. Ba4 {[%emt 0:00:03]} O-O {[%emt 0:05:09]} 16. Bxb4 {[%emt 0:05:23]} Bxf3 {[%emt 0:04:37]} 17. gxf3 {[%emt 0:00:04]} (17. Qxd7 $2 $19 {perishes.}) 17... Qh4 {[%emt 0:14:42]} 18. Bxd7 {[%emt 0:10:38]} Qxb4 {[%emt 0:01:11]} (18... Bxb4 $5 19. Qa4 a5 $11) 19. Qe2 {[%emt 0:02:36]} Rad8 {[%emt 0:02:41]} 20. Rfd1 {[%emt 0:01:01]} Bd6 {[%emt 0:00:32]} 21. Bc6 {[%emt 0:07:12]} Be5 {[%emt 0:02:47]} 22. Qxa6 {[%emt 0:02:44]} (22. Rxd8 $14 Rxd8 23. Qxa6) 22... Qxb2 {[%emt 0:01:03]} 23. Rab1 {[%emt 0:03:38]} (23. a4 {simplifies} Qb4 24. Rxd8 Rxd8 25. Rc1) 23... Qc2 {[%emt 0:00:38]} 24. Qa4 {[%emt 0:01:02]} Qg6+ {[%emt 0:00:41]} 25. Kh1 {[%emt 0:02:15]} Qh5 {[%emt 0:01:00]} 26. f4 {[%emt 0:00:05]} Bd6 {[%emt 0:00:01]} 27. Be4 {[%emt 0:04:22]} g6 {[%emt 0:00:36]} 28. Rg1 {[%emt 0:01:34]} Qh4 {[%emt 0:02:01]} 29. Qc2 {[%emt 0:01:41]} Ba3 {[%emt 0:01:01]} 30. Rb3 {[%emt 0:00:45]} Qe7 {[%emt 0:00:13]} 31. Rb7 {[%emt 0:00:41]} Rd7 {[%emt 0:00:35]} 32. Rxd7 {[%emt 0:01:03]} Qxd7 {[%emt 0:00:01]} 33. Rd1 {[%emt 0:00:08]} Qe7 {[%emt 0:00:48]} 34. Rb1 {[%emt 0:01:46]} Qd6 {[%emt 0:01:01]} 35. Qc3 {[%emt 0:00:39]} (35. Qd3 {simplifies} Qxd3 36. Bxd3 Ra8 37. Kg2) 35... Rd8 {[%emt 0:00:40]} 36. Kg2 {[%emt 0:00:10]} Qa6 {[%emt 0:01:18]} 37. Qf6 {[%emt 0:01:11]} Qa5 {[%emt 0:00:57]} 38. Rb7 {[%emt 0:01:18]} Rf8 {[%emt 0:00:02]} 39. Qe5 {[%emt 0:00:19]} (39. Qd4 {feels hotter.} Bc5 40. Qe5 Rd8 41. Bf3) 39... Qxe5 {[%emt 0:00:34]} 40. fxe5 {[%emt 0:00:05]} Rc8 {[%emt 0:00:13]} 41. Rb3 {[%emt 0:33:10]} Be7 {[%emt 0:31:28]} 42. f4 {[%emt 0:00:40]} Rc4 {[%emt 0:00:00]} 43. Kf3 {[%emt 0:00:00]} Ra4 {[%emt 0:00:00]} 44. Bb1 {[%emt 0:00:00]} Rb4 {[%emt 0:00:00]} 45. Rxb4 {[%emt 0:00:00]} Bxb4 {[%emt 0:00:00]} 46. a4 {[%emt 0:00:00]} Ba5 {[%emt 0:00:00]} 47. Ke4 {[%emt 0:00:00]} Bb6 {[%emt 0:00:00]} 48. Bd3 {[%emt 0:00:00]} Ba5 {[%emt 0:00:00]} 49. Bb5 {[%emt 0:00:00]} Bb6 {[%emt 0:00:00]} 50. h3 {[%emt 0:00:00]} Ba5 {[%emt 0:00:00]} 51. Kd3 {[%emt 0:00:00]} Bb6 {[%emt 0:00:00]} 52. Bc6 {[%emt 0:00:00]} Kf8 {[%emt 0:00:00]} 53. Bf3 {[%emt 0:00:00]} Ke7 {[%emt 0:00:00]} 54. Be2 {[%emt 0:00:00]} f6 {[%emt 0:00:00]} 55. exf6+ {[%emt 0:00:00]} Kxf6 {[%emt 0:00:00]} 56. Bg4 {[%emt 0:00:00]} Ke7 {[%emt 0:00:00]} 57. h4 {[%emt 0:00:00]} h5 {[%emt 0:00:00]} 58. Bf3 {[%emt 0:00:00]} Ba5 {[%emt 0:00:00]} 59. Be4 {[%emt 0:00:00]} Kf6 {[%emt 0:00:00]} 60. Ke2 {[%emt 0:00:00]} Bb6 {[%emt 0:00:00]} 61. Bc6 {[%emt 0:00:00]} Bc7 {[%emt 0:00:00]} (61... e5 $11) 62. Be8 $16 {[%emt 0:00:00]} Kg7 {[%emt 0:00:00] [#]} 63. Kf3 $1 {[%emt 0:00:00]} Bd8 {[%emt 0:00:00]} 64. Kg3 {[%emt 0:00:00]} Ba5 {[%emt 0:00:00] [#]} 65. Kf2 {[%emt 0:00:00]} ({Better is} 65. e4 $1 $16) 65... Bd8 {[%emt 0:00:00]} 66. Kg3 {[%emt 0:13:27]} (66. Kf3 $14 {is superior.}) 1/2-1/2

[Event "Berlin Championship 2024"]
[Site "Berlin"]
[Date "2024.04.01"]
[Round "3.3"]
[White "Schmidek, Emil"]
[Black "Klenburg, Michael"]
[Result "1-0"]
[ECO "E94"]
[WhiteElo "2439"]
[BlackElo "2328"]
[Annotator "RC"]
[PlyCount "125"]
[EventDate "2024.03.30"]
[EventType "swiss"]
[EventCountry "GER"]
[SourceTitle "playchess.com"]
[Source "ChessBase"]
[SourceQuality "1"]
[TimeControl "40/5400+30:1800+30"]

1. d4 {[%emt 0:00:03]} d6 {[%emt 0:00:12]} 2. Nf3 {[%emt 0:00:10]} Nf6 {[%emt 0:00:10]} 3. c4 {[%emt 0:00:07]} g6 {[%emt 0:00:20]} 4. Nc3 {[%emt 0:00:08]} Bg7 {[%emt 0:00:06]} 5. e4 {[%emt 0:00:07]} O-O {[%emt 0:00:06]} 6. Be2 {[%emt 0:00:10]} e5 {[%emt 0:00:25]} 7. O-O {[%emt 0:00:13]} Nbd7 {[%emt 0:00:41]} 8. Be3 {[%emt 0:01:24]} c6 {[%emt 0:01:59]} 9. d5 {[%emt 0:14:00]} c5 {[%emt 0:07:27]} 10. a4 {[%emt 0:13:59]} Ne8 {[%emt 0:04:12]} 11. a5 {[%emt 0:12:27]} Nc7 {[%emt 0:02:23]} 12. g4 {[%emt 0:11:03]} Na6 {[%emt 0:03:32]} 13. h3 {[%emt 0:03:05]} Nb4 {[%emt 0:01:27]} 14. Qd2 {[%emt 0:02:03]} b6 {[%emt 0:05:14]} 15. Ra3 {[%emt 0:09:26]} a6 {[%emt 0:03:28]} 16. Kh2 {[%emt 0:02:09]} bxa5 {[%emt 0:03:20]} 17. Rg1 {[%emt 0:04:56]} Nb6 {[%emt 1:03:58]} 18. Raa1 {[%emt 0:03:53]} Ra7 {[%emt 0:00:00]} 19. Rg3 {[%emt 0:06:21]} Kh8 {[%emt 0:00:00]} 20. Rag1 {[%emt 0:00:53]} a4 {[%emt 0:00:00]} 21. h4 {[%emt 0:01:17]} f6 {[%emt 0:00:00]} 22. h5 {[%emt 0:02:52]} g5 {[%emt 0:00:00]} 23. Ra1 {[%emt 0:00:24]} Bd7 {[%emt 0:00:00]} 24. Rgg1 {[%emt 0:01:04]} Rf7 {[%emt 0:00:00]} 25. Kg3 {[%emt 0:02:34]} h6 {[%emt 0:00:00]} 26. Nh2 {[%emt 0:02:11]} Be8 {[%emt 0:00:00]} 27. Ra3 {[%emt 0:00:21]} Rfb7 {[%emt 0:00:00]} 28. Rga1 {[%emt 0:00:32]} Bd7 {[%emt 0:00:00]} 29. f3 {[%emt 0:00:53]} Ra8 {[%emt 0:00:00]} 30. Nf1 {[%emt 0:00:20]} Rab8 {[%emt 0:00:00]} 31. Qc1 {[%emt 0:01:16]} Qe8 {[%emt 0:00:00]} 32. Bf2 {[%emt 0:01:25]} Bf8 {[%emt 0:00:00]} 33. Ne3 {[%emt 0:00:41]} Kh7 {[%emt 0:00:00]} 34. Qd2 {[%emt 0:00:37]} Be7 {[%emt 0:00:00]} 35. Be1 {[%emt 0:01:07]} Bd8 {[%emt 0:00:00]} 36. Bd1 {[%emt 0:00:42]} Bc7 {[%emt 0:00:00]} 37. Qe2 {[%emt 0:00:47]} Qf8 {[%emt 0:00:00]} 38. Qd2 {[%emt 0:00:29]} Qe8 {[%emt 0:00:00]} 39. Qe2 {[%emt 0:00:11]} Qf8 {[%emt 0:00:00]} 40. Nxa4 {[%emt 0:03:01]} Nxa4 {[%emt 0:00:00]} 41. Bxa4 {[%emt 0:30:07]} Bxa4 {[%emt 0:10:18]} 42. Rxa4 {[%emt 0:00:08]} a5 {[%emt 0:00:18]} 43. Nd1 {[%emt 0:00:00]} Qd8 {[%emt 0:00:00]} 44. Bc3 {[%emt 0:00:00]} Qe8 {[%emt 0:00:00]} 45. Nf2 {[%emt 0:00:00]} Qd8 {[%emt 0:00:00]} 46. Nd3 {[%emt 0:00:00]} Bb6 {[%emt 0:00:00]} 47. Nc1 {[%emt 0:00:00]} Bc7 {[%emt 0:00:00]} 48. Qd1 {[%emt 0:00:00]} Kg7 {[%emt 0:00:00]} 49. R1a3 {[%emt 0:00:00]} Bb6 {[%emt 0:00:00]} 50. Nb3 {[%emt 0:00:00]} Ra7 {[%emt 0:00:00]} 51. Ra1 {[%emt 0:00:00]} Rc8 {[%emt 0:00:00]} 52. Qe2 {[%emt 0:00:20]} Qc7 {[%emt 0:00:00]} 53. Kh3 {[%emt 0:03:49]} Qd8 {[%emt 0:04:36]} 54. Bxb4 {[%emt 0:01:14]} cxb4 {[%emt 0:00:16]} 55. c5 {[%emt 0:00:07]} Bxc5 {[%emt 0:08:25]} 56. Nxa5 {[%emt 0:00:39]} Qe8 {[%emt 0:15:28]} 57. Nc6 {[%emt 0:00:16]} Rb7 {[%emt 0:00:36]} 58. b3 {[%emt 0:00:31]} Qd7 {[%emt 0:01:10]} 59. Ra8 {[%emt 0:00:26]} Rxa8 {[%emt 0:02:21]} 60. Rxa8 {[%emt 0:00:02]} Qc7 {[%emt 0:00:08]} 61. Nd8 {[%emt 0:00:39]} Qb6 {[%emt 0:01:06]} 62. Nxb7 {[%emt 0:00:08]} Qxb7 {[%emt 0:00:03]} 63. Qa6 {[%emt 0:00:13]} 1-0

[Event "Berlin Championship 2024"]
[Site "Berlin"]
[Date "2024.04.01"]
[Round "3.4"]
[White "Hesse, Henrik"]
[Black "Poltorak, Sebastian"]
[Result "1/2-1/2"]
[ECO "A29"]
[WhiteElo "2312"]
[BlackElo "2392"]
[Annotator "RC"]
[PlyCount "90"]
[EventDate "2024.03.30"]
[EventType "swiss"]
[EventCountry "GER"]
[SourceTitle "playchess.com"]
[Source "ChessBase"]
[SourceQuality "1"]
[TimeControl "40/5400+30:1800+30"]

1. c4 {[%emt 0:00:03]} e5 {[%emt 0:00:16]} 2. g3 {[%emt 0:00:13]} Nf6 {[%emt 0:00:06]} 3. Bg2 {[%emt 0:00:40]} d5 {[%emt 0:00:07]} 4. cxd5 {[%emt 0:00:04]} Nxd5 {[%emt 0:00:09]} 5. Nc3 {[%emt 0:02:08]} Nb6 {[%emt 0:00:11]} 6. Nf3 {[%emt 0:00:22]} Nc6 {[%emt 0:00:10]} 7. d3 {[%emt 0:00:25]} Be7 {[%emt 0:00:26]} 8. O-O {[%emt 0:01:55]} O-O {[%emt 0:00:11]} 9. a3 {[%emt 0:00:18]} Re8 {[%emt 0:01:33]} 10. Be3 {[%emt 0:02:02]} Bf8 {[%emt 0:00:20]} 11. Rc1 {[%emt 0:00:19]} Nd4 {[%emt 0:01:09]} 12. Bxd4 {[%emt 0:07:08]} exd4 {[%emt 0:00:23]} 13. Ne4 {[%emt 0:00:10]} c6 {[%emt 0:05:09]} 14. Re1 {[%emt 0:04:09]} Bg4 {[%emt 0:05:26]} 15. Nc5 {[%emt 0:05:14]} Bxc5 {[%emt 0:01:58]} 16. Rxc5 {[%emt 0:00:06]} Nd7 {[%emt 0:02:26]} 17. Rc1 {[%emt 0:02:05]} Bxf3 {[%emt 0:01:05]} 18. Bxf3 {[%emt 0:00:39]} Ne5 {[%emt 0:00:11]} 19. Bg2 {[%emt 0:00:24]} Qd6 {[%emt 0:06:32]} 20. e3 {[%emt 0:16:05]} dxe3 {[%emt 0:05:04]} 21. Rxe3 {[%emt 0:00:12]} Re7 {[%emt 0:11:10]} 22. d4 {[%emt 0:12:13]} Ng6 {[%emt 0:05:11]} 23. Rxe7 {[%emt 0:10:19]} Nxe7 {[%emt 0:01:42]} 24. Qb3 {[%emt 0:01:07]} Qd7 {[%emt 0:04:31]} 25. Re1 {[%emt 0:05:04]} Rd8 {[%emt 0:01:25]} 26. Qb4 {[%emt 0:03:12]} Nc8 {[%emt 0:03:38]} 27. Qc5 {[%emt 0:09:28]} g6 {[%emt 0:16:32]} 28. Qe5 {[%emt 0:08:16]} Nd6 {[%emt 0:01:33]} 29. d5 {[%emt 0:02:46]} c5 {[%emt 0:03:14]} 30. Qf6 {[%emt 0:01:39]} Re8 {[%emt 0:01:34]} 31. Rxe8+ {[%emt 0:04:42]} Nxe8 {[%emt 0:00:03]} 32. Qe5 {[%emt 0:00:05]} Nd6 {[%emt 0:05:14]} 33. h4 {[%emt 0:00:12]} h5 {[%emt 0:01:03]} 34. Kh2 {[%emt 0:00:38]} Qd8 {[%emt 0:01:01]} 35. f4 {[%emt 0:02:27]} b5 {[%emt 0:00:44]} 36. Qe3 {[%emt 0:00:58]} Qc7 {[%emt 0:00:51]} 37. Qe5 {[%emt 0:00:15]} a5 {[%emt 0:01:18]} 38. f5 {[%emt 0:00:30]} gxf5 {[%emt 0:03:43]} 39. Bf3 {[%emt 0:00:11]} c4 {[%emt 0:01:51]} 40. Bxh5 {[%emt 0:00:35]} b4 {[%emt 0:01:23]} 41. axb4 {[%emt 0:01:49]} axb4 {[%emt 0:00:15]} 42. Bd1 {[%emt 0:12:46]} Qc5 {[%emt 0:02:32]} 43. Kh3 {[%emt 0:08:46]} Qf2 {[%emt 0:32:29]} 44. Qxd6 {[%emt 0:04:35]} Qf1+ {[%emt 0:00:05]} 45. Kh2 {[%emt 0:00:08]} Qf2+ {[%emt 0:00:03]} 1/2-1/2

[Event "Berlin Championship 2024"]
[Site "Berlin"]
[Date "2024.04.01"]
[Round "3.5"]
[White "Florstedt, Johannes"]
[Black "Jahnz, Laurin"]
[Result "0-1"]
[ECO "B31"]
[WhiteElo "2348"]
[BlackElo "2051"]
[Annotator "RC"]
[PlyCount "108"]
[EventDate "2024.03.30"]
[EventType "swiss"]
[EventCountry "GER"]
[SourceTitle "playchess.com"]
[Source "ChessBase"]
[SourceQuality "1"]
[TimeControl "40/5400+30:1800+30"]

1. e4 {[%emt 0:07:09]} c5 {[%emt 0:00:05]} 2. Nf3 {[%emt 0:00:09]} Nc6 {[%emt 0:00:03]} 3. Bb5 {[%emt 0:01:10]} Nf6 {[%emt 0:00:05]} 4. Bxc6 {[%emt 0:01:47]} dxc6 {[%emt 0:00:09]} 5. d3 {[%emt 0:00:13]} g6 {[%emt 0:00:49]} 6. O-O {[%emt 0:01:42]} Bg7 {[%emt 0:00:03]} 7. a4 {[%emt 0:04:47]} a5 {[%emt 0:02:03]} 8. Nbd2 {[%emt 0:03:25]} O-O {[%emt 0:00:23]} 9. Nc4 {[%emt 0:01:07]} Bg4 {[%emt 0:01:53]} 10. h3 {[%emt 0:00:28]} Bxf3 {[%emt 0:00:11]} 11. Qxf3 {[%emt 0:00:07]} Nd7 {[%emt 0:01:02]} 12. Qg3 {[%emt 0:04:37]} e5 {[%emt 0:13:38]} 13. f4 {[%emt 0:01:03]} b5 {[%emt 0:13:06]} 14. Nxe5 {[%emt 0:06:55]} Nxe5 {[%emt 0:00:05]} 15. fxe5 {[%emt 0:00:07]} c4 {[%emt 0:14:07]} 16. Be3 {[%emt 0:22:39]} cxd3 {[%emt 0:03:43]} 17. Bc5 {[%emt 0:00:07]} Re8 {[%emt 0:01:44]} 18. Bd6 {[%emt 0:15:32]} Qb6+ {[%emt 0:05:58]} 19. Kh1 {[%emt 0:01:55]} bxa4 {[%emt 0:17:13]} 20. cxd3 {[%emt 0:01:13]} Qd4 {[%emt 0:07:08]} 21. Qf3 {[%emt 0:02:53]} Ra7 {[%emt 0:00:05]} 22. Rac1 {[%emt 0:00:10]} Qxb2 {[%emt 0:01:54]} 23. Bc5 {[%emt 0:06:30]} Rb7 {[%emt 0:00:40]} 24. d4 {[%emt 0:00:10]} Rd8 {[%emt 0:05:41]} 25. Qd3 {[%emt 0:03:28]} Qb3 {[%emt 0:01:17]} 26. Rc3 {[%emt 0:00:23]} Qe6 {[%emt 0:00:59]} 27. Qa6 {[%emt 0:00:47]} Rb3 {[%emt 0:01:32]} 28. Qxa5 {[%emt 0:00:15]} Rc8 {[%emt 0:01:45]} 29. Bd6 {[%emt 0:03:59]} Rxc3 {[%emt 0:01:28]} 30. Qxc3 {[%emt 0:00:06]} Bf8 {[%emt 0:02:24]} 31. Rf6 {[%emt 0:03:40]} Qb3 {[%emt 0:00:27]} 32. Qf3 {[%emt 0:02:54]} Qxf3 {[%emt 0:00:23]} 33. Rxf3 {[%emt 0:00:08]} Bxd6 {[%emt 0:00:35]} 34. exd6 {[%emt 0:00:05]} Ra8 {[%emt 0:00:23]} 35. Ra3 {[%emt 0:01:13]} Kf8 {[%emt 0:00:51]} 36. Kg1 {[%emt 0:02:55]} Ke8 {[%emt 0:00:04]} 37. Kf2 {[%emt 0:00:06]} Kd7 {[%emt 0:00:06]} 38. e5 {[%emt 0:00:11]} Ke6 {[%emt 0:00:28]} 39. Ke3 {[%emt 0:00:16]} f6 {[%emt 0:00:29]} 40. Kf4 {[%emt 0:01:40]} fxe5+ {[%emt 0:01:27]} 41. dxe5 {[%emt 0:30:06]} Rf8+ {[%emt 0:32:32]} 42. Kg5 {[%emt 0:00:00]} Kxe5 {[%emt 0:00:00]} 43. Kh6 {[%emt 0:00:00]} Rf7 {[%emt 0:00:00]} 44. Rd3 {[%emt 0:00:00]} Rd7 {[%emt 0:00:00]} 45. Rd1 {[%emt 0:00:00]} c5 {[%emt 0:00:00]} 46. h4 {[%emt 0:00:00]} c4 {[%emt 0:00:00]} 47. g4 {[%emt 0:00:00]} Ke4 {[%emt 0:00:00]} 48. Ra1 {[%emt 0:00:00]} c3 {[%emt 0:00:00]} 49. Rxa4+ {[%emt 0:00:00]} Kd3 {[%emt 0:00:00]} 50. Ra1 {[%emt 0:00:00]} c2 {[%emt 0:00:00]} 51. Rh1 {[%emt 0:00:00]} Kd2 {[%emt 0:00:00]} 52. Rh2+ {[%emt 0:00:00]} Kc3 {[%emt 0:00:00]} 53. Rh1 {[%emt 0:00:00]} Kb2 {[%emt 0:00:00]} 54. h5 {[%emt 0:00:00]} gxh5 {[%emt 0:00:00]} 0-1

[Event "Berlin Championship 2024"]
[Site "Berlin"]
[Date "2024.04.01"]
[Round "3.6"]
[White "Muse, Drazen"]
[Black "Foerster, Jonas"]
[Result "1-0"]
[ECO "A07"]
[WhiteElo "2316"]
[BlackElo "2238"]
[Annotator "RC"]
[PlyCount "151"]
[EventDate "2024.03.30"]
[EventType "swiss"]
[EventCountry "GER"]
[SourceTitle "playchess.com"]
[Source "ChessBase"]
[SourceQuality "1"]
[TimeControl "40/5400+30:1800+30"]

1. Nf3 Nf6 {[%emt 0:04:58]} 2. g3 {[%emt 0:01:24]} e6 {[%emt 0:04:52]} 3. Bg2 {[%emt 0:01:19]} Be7 {[%emt 0:02:00]} 4. O-O {[%emt 0:00:43]} O-O {[%emt 0:01:47]} 5. d3 {[%emt 0:04:06]} d5 {[%emt 0:01:55]} 6. Nc3 {[%emt 0:03:19]} Na6 {[%emt 0:10:36]} 7. a3 {[%emt 0:00:21]} c6 {[%emt 0:06:16]} 8. Re1 {[%emt 0:01:51]} h6 {[%emt 0:09:47]} 9. Bd2 {[%emt 0:02:36]} d4 {[%emt 0:05:37]} 10. Nb1 {[%emt 0:00:39]} Qb6 {[%emt 0:07:47]} 11. Bc1 {[%emt 0:04:23]} Rd8 {[%emt 0:02:22]} 12. Nbd2 {[%emt 0:01:27]} c5 {[%emt 0:14:15]} 13. Nc4 {[%emt 0:02:04]} Qb5 {[%emt 0:00:16]} 14. a4 {[%emt 1:13:18]} Qe8 {[%emt 0:00:17]} 15. c3 {[%emt 0:00:00]} dxc3 {[%emt 0:05:23]} 16. bxc3 {[%emt 0:00:00]} Nd5 {[%emt 0:00:08]} 17. Bd2 {[%emt 0:00:00]} Bf6 {[%emt 0:00:35]} 18. Qc2 {[%emt 0:00:00]} e5 {[%emt 0:02:42]} 19. Reb1 {[%emt 0:00:00]} Rb8 {[%emt 0:03:58]} 20. Bc1 {[%emt 0:00:00]} Bg4 {[%emt 0:02:32]} 21. Nfd2 {[%emt 0:00:00]} Qe6 {[%emt 0:04:26]} 22. Ne4 {[%emt 0:00:00]} Be7 {[%emt 0:00:19]} 23. f3 {[%emt 0:00:00]} Bf5 {[%emt 0:01:00]} 24. Nf2 {[%emt 0:00:00]} Ndc7 {[%emt 0:06:37]} 25. e4 {[%emt 0:00:00]} Bg6 {[%emt 0:00:04]} 26. Bh3 {[%emt 0:00:00]} Qf6 {[%emt 0:01:16]} 27. Ng4 {[%emt 0:00:00]} Qc6 {[%emt 0:00:53]} 28. Ngxe5 {[%emt 0:00:00]} Qe8 {[%emt 0:00:11]} 29. Nxg6 {[%emt 0:00:00]} fxg6 {[%emt 0:00:07]} 30. Be3 {[%emt 0:00:00]} Kh7 {[%emt 0:00:58]} 31. f4 {[%emt 0:00:00]} g5 {[%emt 0:00:22]} 32. f5 {[%emt 0:00:00]} Bf6 {[%emt 0:02:14]} 33. Re1 {[%emt 0:00:00]} b5 {[%emt 0:00:00]} 34. axb5 {[%emt 0:00:00]} Rxb5 {[%emt 0:00:00]} 35. Bf2 {[%emt 0:00:00]} Qh5 {[%emt 0:00:10]} 36. Bg2 {[%emt 0:00:00]} g4 {[%emt 0:00:21]} 37. Ra2 {[%emt 0:00:00]} Be7 {[%emt 0:00:48]} 38. Qe2 {[%emt 0:00:00]} Rb3 {[%emt 0:00:28]} 39. Rc2 {[%emt 0:00:00]} Nb5 {[%emt 0:00:49]} 40. Rec1 {[%emt 0:00:00]} Bg5 {[%emt 0:00:32]} 41. Be3 {[%emt 0:00:00]} Na3 {[%emt 0:03:25]} 42. Nxa3 {[%emt 0:00:00]} Rxa3 {[%emt 0:00:12]} 43. e5 {[%emt 0:00:00]} c4 {[%emt 0:04:17]} 44. d4 {[%emt 0:00:00]} Bxe3+ {[%emt 0:00:29]} 45. Qxe3 {[%emt 0:00:00]} Nb4 {[%emt 0:00:16]} 46. Rd2 {[%emt 0:46:00]} Nd3 {[%emt 0:00:38]} 47. Rxd3 {[%emt 0:00:00]} cxd3 {[%emt 0:00:06]} 48. Qxd3 {[%emt 0:00:00]} Kh8 {[%emt 0:02:16]} 49. d5 {[%emt 0:00:00]} Qg5 {[%emt 0:00:44]} 50. Rc2 {[%emt 0:00:00]} Ra1+ {[%emt 0:01:30]} 51. Bf1 {[%emt 0:00:00]} Re1 {[%emt 0:09:30]} 52. Re2 {[%emt 0:00:00]} Qc1 {[%emt 0:01:22]} 53. Rxe1 {[%emt 0:00:00]} Qxe1 {[%emt 0:00:07]} 54. Qd4 {[%emt 0:00:00]} Rb8 {[%emt 0:08:40]} 55. f6 {[%emt 0:00:00]} Rb1 {[%emt 0:00:51]} 56. fxg7+ {[%emt 0:00:00]} Kg8 {[%emt 0:00:30]} 57. Qf4 {[%emt 0:00:00]} Kxg7 {[%emt 0:00:28]} 58. Qxg4+ {[%emt 0:00:00]} Kh8 {[%emt 0:01:11]} 59. Qc8+ {[%emt 0:00:00]} Kg7 {[%emt 0:00:13]} 60. Qd7+ {[%emt 0:00:00]} Kg8 {[%emt 0:01:41]} 61. Qe8+ {[%emt 0:00:00]} Kg7 {[%emt 0:00:12]} 62. Qe7+ {[%emt 0:00:00]} Kg8 {[%emt 0:00:03]} 63. Qe6+ {[%emt 0:00:00]} Kg7 {[%emt 0:00:48]} 64. Qf6+ {[%emt 0:00:00]} Kg8 {[%emt 0:00:22]} 65. Qg6+ {[%emt 0:00:00]} Kf8 {[%emt 0:00:53]} 66. Qxh6+ {[%emt 0:00:00]} Ke8 {[%emt 0:00:04]} 67. Qe6+ {[%emt 0:00:00]} Kd8 {[%emt 0:00:15]} 68. Qf6+ {[%emt 0:00:00]} Kc8 {[%emt 0:00:09]} 69. d6 {[%emt 0:00:00]} a5 {[%emt 0:00:40]} 70. Qe6+ {[%emt 0:00:00]} Kb8 {[%emt 0:00:31]} 71. Qe8+ {[%emt 0:00:00]} Ka7 {[%emt 0:00:08]} 72. Qf7+ {[%emt 0:00:00]} Rb7 {[%emt 0:00:37]} 73. Qf4 {[%emt 0:00:00]} Qxc3 {[%emt 0:01:19]} 74. Qf2+ {[%emt 0:00:00]} Kb8 {[%emt 0:00:16]} 75. e6 {[%emt 0:00:00]} Rb2 {[%emt 0:01:15]} 76. e7 {[%emt 0:00:00]} 1-0

[Event "Berlin Championship 2024"]
[Site "Berlin"]
[Date "2024.04.01"]
[Round "3.7"]
[White "Eilenberg, Jonas"]
[Black "Syre, Christian"]
[Result "1/2-1/2"]
[ECO "B23"]
[WhiteElo "2303"]
[BlackElo "2128"]
[Annotator "RC"]
[PlyCount "109"]
[EventDate "2024.03.30"]
[EventType "swiss"]
[EventCountry "GER"]
[SourceTitle "playchess.com"]
[Source "ChessBase"]
[SourceQuality "1"]
[TimeControl "40/5400+30:1800+30"]

1. e4 {[%emt 0:00:12]} c5 {[%emt 0:00:48]} 2. Nc3 {[%emt 0:00:12]} Nc6 {[%emt 0:00:13]} 3. Bb5 Nd4 {[%emt 0:06:07]} 4. Nf3 {[%emt 0:00:34]} g6 {[%emt 0:00:51]} 5. Nxd4 {[%emt 0:00:51]} cxd4 {[%emt 0:00:10]} 6. Ne2 {[%emt 0:00:06]} Bg7 {[%emt 0:00:24]} 7. c3 {[%emt 0:01:04]} dxc3 {[%emt 0:03:49]} 8. dxc3 {[%emt 0:00:23]} Nf6 {[%emt 0:00:20]} 9. Qc2 {[%emt 0:04:57]} O-O {[%emt 0:00:25]} 10. O-O {[%emt 0:00:27]} d5 {[%emt 0:13:43]} 11. exd5 {[%emt 0:00:29]} Qxd5 {[%emt 0:00:35]} 12. Qa4 {[%emt 0:00:45]} a6 {[%emt 0:04:45]} 13. Bc4 {[%emt 0:00:06]} Qd7 {[%emt 0:05:10]} 14. Qxd7 {[%emt 0:03:18]} Bxd7 {[%emt 0:01:31]} 15. Rd1 {[%emt 0:01:45]} Rac8 {[%emt 0:01:12]} 16. Bb3 {[%emt 0:00:31]} Bb5 {[%emt 0:10:53]} 17. Ng3 {[%emt 0:03:09]} Rfd8 {[%emt 0:05:14]} 18. Be3 {[%emt 0:01:54]} h5 {[%emt 0:11:15]} 19. Bg5 {[%emt 0:11:14]} Kf8 {[%emt 0:01:56]} 20. f3 {[%emt 0:04:26]} Ke8 {[%emt 0:02:59]} 21. Re1 {[%emt 0:07:33]} Bc4 {[%emt 0:01:27]} 22. Ne4 {[%emt 0:10:34]} Nxe4 {[%emt 0:10:27]} 23. Rxe4 {[%emt 0:00:31]} Bxb3 {[%emt 0:00:01]} 24. axb3 {[%emt 0:00:46]} Rd7 {[%emt 0:00:16]} 25. Rae1 {[%emt 0:05:09]} e6 {[%emt 0:03:04]} 26. b4 {[%emt 0:02:59]} Rd5 {[%emt 0:05:15]} 27. Bf4 {[%emt 0:02:59]} Ke7 {[%emt 0:03:24]} 28. Kf2 {[%emt 0:01:07]} Rc6 {[%emt 0:00:33]} 29. R4e2 {[%emt 0:02:39]} Kd7 {[%emt 0:02:27]} 30. Rd2 {[%emt 0:01:16]} Rxd2+ {[%emt 0:00:34]} 31. Bxd2 {[%emt 0:00:02]} Rd6 {[%emt 0:00:19]} 32. Bf4 {[%emt 0:00:55]} e5 {[%emt 0:00:39]} 33. Be3 {[%emt 0:01:44]} b5 {[%emt 0:01:20]} 34. Ke2 {[%emt 0:03:52]} Kc6 {[%emt 0:00:02]} 35. Ra1 {[%emt 0:05:27]} Kb7 {[%emt 0:00:32]} 36. h3 {[%emt 0:03:54]} f5 {[%emt 0:01:08]} 37. Rg1 {[%emt 0:01:58]} Kc6 {[%emt 0:01:28]} 38. g4 {[%emt 0:02:15]} fxg4 {[%emt 0:00:35]} 39. hxg4 {[%emt 0:01:17]} hxg4 {[%emt 0:00:05]} 40. Rxg4 {[%emt 0:00:20]} Kd5 {[%emt 0:01:01]} 41. b3 {[%emt 0:34:48]} Rf6 {[%emt 0:30:55]} 42. Rg1 {[%emt 0:04:12]} Bf8 {[%emt 0:02:25]} 43. Ra1 {[%emt 0:03:58]} Rc6 {[%emt 0:00:34]} 44. Kd3 {[%emt 0:03:03]} Ke6 {[%emt 0:00:07]} 45. Rh1 {[%emt 0:01:39]} Be7 {[%emt 0:00:00]} 46. Rh7 {[%emt 0:00:00]} Rd6+ {[%emt 0:00:00]} 47. Ke2 {[%emt 0:00:00]} Rc6 {[%emt 0:00:00]} 48. Bd2 {[%emt 0:00:00]} Bf6 {[%emt 0:00:00]} 49. Kd3 {[%emt 0:00:00]} Rd6+ {[%emt 0:00:00]} 50. Kc2 {[%emt 0:00:00]} Rc6 {[%emt 0:00:00]} 51. Rh1 {[%emt 0:00:00]} Kf5 {[%emt 0:00:00]} 52. Rg1 {[%emt 0:00:00]} Be7 {[%emt 0:00:00]} 53. Rg4 {[%emt 0:00:00]} Rc8 {[%emt 0:00:00]} 54. c4 {[%emt 0:00:00]} Rh8 {[%emt 0:00:00]} 55. Rg2 {[%emt 0:00:00]} 1/2-1/2